Cogmind - Beta 9.3 @@@ ROGUE MODE // 2019.12.26 @ 23:19:00 Player: 3.14 Result: Destroyed by as-30647 with Assembled Heavy Rifle Performance ------------- Evolutions (0) 0 Regions Visited (2) 400 Robots Destroyed (12) 60 Value Destroyed (171) 171 Prototype IDs (0) 0 Alien Tech Used (0) 0 Bonus (0) 0 TOTAL SCORE: 631 Bonus ------- None Cogmind --------- Core Integrity 0/250 Matter 218/300 Energy 100/100 System Corruption 0% Temperature Cool (0) Movement Core (50) Location -10/Mines Parts ------- > --- POWER (1) -------- (None) > --- PROPULSION (2) --- (None) > --- UTILITY (2) ------ (None) > --- WEAPON (2) ------- (None) > --- INVENTORY (4) ---- Heat Sink Medium Armor Plating Medium Armor Plating Grenade Launcher Peak State ------------ > --- POWER ------------ Light Nuclear Core > --- PROPULSION ------- Light Treads Light Treads > --- UTILITY ---------- Small Storage Unit Medium Armor Plating > --- WEAPON ----------- Medium Laser Light Assault Rifle > --- INVENTORY -------- Ion Engine Aluminum Leg Medium Armor Plating Medium Armor Plating Medium Armor Plating Medium Laser [Rating: 10] Favorites ----------- Power Ion Engine Engine Ion Engine Power Core Light Nuclear Core Propulsion Light Treads Treads Light Treads Utility Small Storage Unit Storage Small Storage Unit Protection Medium Armor Plating Weapon Light Assault Rifle Energy Gun Medium Laser Ballistic Gun Light Assault Rifle Ballistic Cannon Light Cannon Launcher Grenade Launcher Build | -11 -10 -10 ------- Run | Scr Mat Min Slots Evolved . | . . . Power . | . . . Propulsion . | . . . Utility . | . . . Weapon . | . . . Parts Attached 13 | 6 4 3 Power 2 | 1 1 . Engine 1 | 1 . . Core 1 | . 1 . Reactor . | . . . Propulsion 2 | 2 . . Treads 2 | 2 . . Leg . | . . . Wheel . | . . . Hover . | . . . Flight . | . . . Utility 3 | 1 2 . Device . | . . . Storage 2 | 1 1 . Processor . | . . . Hackware . | . . . Protection 1 | . 1 . Artifact . | . . . Weapon 6 | 2 1 3 Energy Gun 2 | 1 . 1 Energy Cannon . | . . . Ballistic Gun 1 | 1 . . Ballistic Cannon 2 | . 1 1 Launcher 1 | . . 1 Special Weapon . | . . . Impact Weapon . | . . . Slashing Weapon . | . . . Piercing Weapon . | . . . Special Melee Weapon . | . . . Unidentified Prototypes . | . . . Parts Lost 6 | . . 6 Power 1 | . . 1 Propulsion 2 | . . 2 Utility . | . . . Weapon 3 | . . 3 Highest Loss Streak 6 | . . 6 Average Slot Usage (%) 95 | . 97 85 Engine 4 | . 5 . Core 7 | . 7 7 Treads 26 | . 28 21 Storage 21 | . 19 28 Protection 5 | . 7 . Energy Gun 10 | . 12 2 Ballistic Gun 14 | . 14 14 Ballistic Cannon 3 | . 1 9 Naked Turns 3 | . . 3 Heaviest Build 19 | 12 19 17 Greatest Support 40 | 40 40 40 Greatest Overweight (x) . | . . . Average Overweight (x) . | . . . Largest Inventory Capacity 8 | 6 8 8 Average Capacity 6 | 4 6 7 Most Carried 8 | 4 8 8 Average Carried 5 | 2 6 7 Final Capacity 8 | 6 8 4 Final Carried 8 | 4 8 4 Class Distribution -------------------- 100% | Mutant Dominant Class ---------------- Mutant | -10/Materials Mutant | -10/Mines Resources | -11 -10 -10 ----------- Run | Scr Mat Min Matter Collected 319 | 254 65 . Remotely . | . . . Salvage Created 450 | 62 334 54 Parts 13 | 2 8 3 Haulers Intercepted 1 | . 1 . Recyclers Shooed 3 | . 3 . Parts Field Recycled . | . . . Retrieved Matter . | . . . Parts Self-Destructed . | . . . Prevented . | . . . Kills | -11 -10 -10 ------- Run | Scr Mat Min Combat Hostiles Destroyed 7 | . 2 5 Guns 2 | . 2 . Cannons 1 | . . 1 AOE 4 | . . 4 Classes Destroyed 6 | 2 2 2 Tunneler 1 | 1 . . Hauler 1 | . 1 . Recycler 3 | 1 2 . Grunt 2 | . 2 . Demolisher 1 | . . 1 Assembled 4 | . . 4 Best Kill Streak 5 | 2 2 5 Combat Bots Only 5 | . 1 5 Max Kills in Single Turn 2 | 1 1 2 Gunslinging . | . . . Exploded 2 | . . 2 Melee . | . . . Uniques/NPCs Destroyed . | . . . Combat | -11 -10 -10 -------- Run | Scr Mat Min Damage Taken 944 | . 172 772 Core 259 | . 50 209 Absorbed by Shields . | . . . Core Remaining (%) 100 | 100 . . Volleys Fired 35 | 4 17 14 Largest 2 | 2 2 2 Hottest 70 | 70 70 70 Shots Fired 66 | 8 34 24 Gun 52 | 8 32 12 Cannon 10 | . 2 8 Launcher 4 | . . 4 Special . | . . . Kinetic 41 | 4 19 18 Thermal 21 | 4 15 2 Explosive 4 | . . 4 Electromagnetic . | . . . Robot Hit Streak 13 | 5 13 4 Robot Miss Streak 3 | 1 3 1 Penetration Max . | . . . Secondary Targets . | . . . Shots Hit Robots 46 | 6 25 15 Core Hits 26 | 4 10 12 Critical Hits 1 | . . 1 Critical Kills . | . . . Critical Parts Destroyed . | . . . Melee Attacks . | . . . Impact . | . . . Slashing . | . . . Piercing . | . . . Sneak Attacks . | . . . Combat Hostiles . | . . . Follow-up Attacks . | . . . Damage Inflicted 743 | 72 292 379 Guns 399 | 63 253 83 Cannons 142 | . 37 105 Explosions 191 | . . 191 Melee . | . . . Ramming 11 | 9 2 . Kinetic 314 | 12 127 175 Thermal 227 | 51 163 13 Explosive 191 | . . 191 Electromagnetic . | . . . Impact . | . . . Slashing . | . . . Piercing . | . . . Highest Corruption . | . . . Average Corruption . | . . . Corruption Purged . | . . . Overload Shots . | . . . Overflow Damage . | . . . Projectiles . | . . . Explosions . | . . . Melee . | . . . Knockbacks 1 | . . 1 Impact . | . . . Kinetic 1 | . . 1 Secondary . | . . . Self-Inflicted Damage . | . . . Shots . | . . . Rammed 4 | 3 1 . Targets Rammed 5 | 4 1 . Kicked . | . . . Crushed 1 | 1 . . Highest Temperature 208 | 80 208 20 Average Temperature 61 | 40 80 7 Received Heat Transfer 108 | . 96 12 Siege Activations . | . . . Robots Corrupted . | . . . Combat Hostiles . | . . . Parts Fried . | . . . Impact Corruptions . | . . . Robots Melted . | . . . Combat Hostiles . | . . . Parts Melted 1 | 1 . . Heat Transferred 666 | 148 481 37 Parts Sabotaged . | . . . Parts Stolen . | . . . Parts Stripped . | . . . Power Chain Reactions . | . . . Missiles Intercepted . | . . . Alert | -11 -10 -10 ------- Run | Scr Mat Min Peak Influence 73 | 10 73 53 Average Influence 30 | 2 43 34 Maximum Alert Level . | . . . Low Security (%) 100 | 100 100 100 Level 1 . | . . . Level 2 . | . . . Level 3 . | . . . Level 4 . | . . . Level 5 . | . . . High Security . | . . . Max Security . | . . . Squads Dispatched . | . . . Investigation . | . . . Extermination . | . . . Reinforcement . | . . . Assault . | . . . Garrison . | . . . Intercept . | . . . Construction Impeded . | . . . Haulers Reinforced . | . . . Stealth | -11 -10 -10 --------- Run | Scr Mat Min Distress Signals 1 | . 1 . Communications Jammed . | . . . Distress Signals . | . . . Times Spotted 15 | . 3 12 Peak Tracking Total 6 | . 3 6 Tactical Retreats . | . . . Traps | -11 -10 -10 ------- Run | Scr Mat Min Traps Triggered . | . . . Indirectly . | . . . Trap Hack Attempts . | . . . Triggered . | . . . Disarmed . | . . . Reprogrammed . | . . . Reused . | . . . Traps Extracted . | . . . Installed . | . . . Triggered . | . . . Machines | -11 -10 -10 ---------- Run | Scr Mat Min Machines Disabled 1 | . . 1 Max in Single Turn 1 | . . 1 Machines Sabotaged . | . . . Garrisons Compromised . | . . . Overloaded Fab Kills . | . . . Fab Network Shutdowns . | . . . Hacking | -11 -10 -10 --------- Run | Scr Mat Min Machines Accessed . | . . . Terminals . | . . . Fabricators . | . . . Repair Stations . | . . . Recycling Units . | . . . Scanalyzers . | . . . Garrison Access . | . . . Total Hacks . | . . . Successful . | . . . Failed . | . . . Catastrophic . | . . . Database Lockouts . | . . . Manual . | . . . Terminals . | . . . Fabricators . | . . . Repair Stations . | . . . Recycling Units . | . . . Scanalyzers . | . . . Garrison Access . | . . . Terminal Hacks . | . . . Fabricator Hacks . | . . . Repair Station Hacks . | . . . Recycling Unit Hacks . | . . . Scanalyzer . | . . . Garrison Access Hacks . | . . . Unauthorized Hacks . | . . . Terminals . | . . . Fabricators . | . . . Repair Stations . | . . . Recycling Units . | . . . Scanalyzers . | . . . Garrison Access . | . . . Data Cores Recovered . | . . . Used . | . . . Hacking Detections . | . . . Full Trace Events . | . . . Feedback Events . | . . . Feedback Blocked . | . . . Robot Schematics Acquired . | . . . Robots Built . | . . . Matter . | . . . Time . | . . . Total Robot Build Rating . | . . . Part Schematics Acquired . | . . . Parts Built . | . . . Matter . | . . . Time . | . . . Total Part Build Rating . | . . . Parts Repaired . | . . . Time . | . . . Parts Recycled . | . . . Recycled Matter . | . . . Retrieved Matter . | . . . Retrieved Components . | . . . Parts Scanalyzed . | . . . Part Schematics Acquired . | . . . Parts Damaged . | . . . Bothacking | -11 -10 -10 ------------ Run | Scr Mat Min Used RIF Installer . | . . . Robots Hacked . | . . . Non-combat . | . . . Combat . | . . . Robot Hacks Applied . | . . . Relay Couplers Released . | . . . Robots Rewired . | . . . Allies Hacked . | . . . Hacks Repelled . | . . . Allies | -11 -10 -10 -------- Run | Scr Mat Min Total Allies . | . . . Largest Group . | . . . Highest-Rated Group . | . . . Highest-Rated Ally . | . . . Total Orders . | . . . Ally Attacks . | . . . Total Damage . | . . . Kills . | . . . Allies Corrupted . | . . . Allies Melted . | . . . Intel | -11 -10 -10 ------- Run | Scr Mat Min Robot Analysis Total . | . . . Derelict Logs Recovered . | . . . Drone Launches . | . . . Drone Recoveries . | . . . Exploration | -11 -10 -10 ------------- Run | Scr Mat Min Turns Passed 385 | 103 220 62 Spaces Moved 160 | 49 95 16 Core 9 | 4 . 5 Treads 151 | 45 95 11 Legs . | . . . Wheels . | . . . Hover . | . . . Flight . | . . . Fastest Speed 50 | 50 160 50 Average Speed 153 | 151 160 125 Slowest Speed 160 | 160 160 160 Overloaded Moves . | . . . Propulsion Burnouts . | . . . Robots Hopped . | . . . Cave-ins Triggered . | . . . Exploration Rate (%) 12 | 4 23 11 Regions Visited 2 Branch Regions 1 Pre-discovered Areas . | . . . Known Exits Taken . | . . . Unknown Exits Taken 2 | 1 1 . Scrap Searched . | . . . Spaces Dug 6 | . . 6 Terrain Destroyed 36 | . . 36 Melee . | . . . Projectile . | . . . AOE 36 | . . 36 Actions | -11 -10 -10 --------- Run | Scr Mat Min Total 234 | 66 133 35 Wait 4 | . 4 . Move 159 | 49 94 16 Hop . | . . . Pick Up 11 | 4 7 . Fast Attach 10 | 6 4 . Attach 1 | . . 1 Detach . | . . . Swap 2 | . . 2 Drop 8 | . 6 2 Fire 35 | 4 17 14 Melee . | . . . Ram . | . . . Kick . | . . . Crush 4 | 3 1 . Escape Stasis . | . . . Rewire . | . . . Trap . | . . . Miscellaneous . | . . . Route ------- -11/Scrapyard -10/Materials (discovered 2 exits: [*Mat] / [*Min]) -10/Mines History --------- Turn | Location | Event 8 | -11/Scrapyard | Discovered new exit (range 13) 104 | -11/Scrapyard | Entered Materials 288 | -10/Materials | Discovered new exit (range 15) 296 | -10/Materials | Discovered new exit (range 14) 316 | -10/Materials | Build established: Mutant 324 | -10/Materials | Entered Mines 325 | -10/Mines | Assembled infested the area 330 | -10/Mines | Assisted by a Guerilla fighting off Assembled 380 | -10/Mines | Core integrity fell below 50% 384 | -10/Mines | Core integrity fell below 20% 386 | -10/Mines | Destroyed by as-30647 with Assembled Heavy Rifle Last Messages --------------- 00370_ The unstable cave ceiling collapses. 00370_ U-05 Engineer lays Concrete. 00373_ D-53 Grenadier knocked back. 00373_ U-05 Engineer builds a Wall. 00375_ Lgt. Cannon destroyed. 00375_ Lgt. Treads destroyed. 00376_ The unstable cave ceiling collapses. 00377_ U-05 Engineer lays Concrete. 00378_ U-05 Engineer builds a Wall. 00378_ U-05 Engineer lays Concrete. 00380_ The unstable cave ceiling collapses. 00381_ U-05 Engineer builds a Wall. 00381_ Med. Laser destroyed. 00381_ Lgt. Assault Rifle destroyed. 00382_ U-05 Engineer lays Concrete. 00382_ Dropped Sml. Storage Unit. 00383_ The unstable cave ceiling collapses. 00383_ Dropped Sml. Storage Unit. 00385_ U-05 Engineer builds a Wall. 00386_ The unstable cave ceiling collapses. Map ----- +----------------------------------------------------+ | ?????????????????????????????????????????????????? | | ?????????????????????????????????????????????????? | | ?????????????????????????????????????????????????? | | ?????????????????????????????????????????????????? | | ?????????????????????????????????????????????????? | | ?????????????????????????????????????????????????? | | ?????????????????????????????????????????????????? | | ?????????????????????????????????????????????????? | | ?????????????????????????????????????????????????? | | ?????????????????????????????????????????????????? | | ?????????????????????????????????????????????????? | | ?????????????????????????????????????????????????? | | ?????????????????????????????????????????????????? | | ?????????????????????????????????????????????????? | | ?????????????????????????????????????????????????? | | ?????????????????????????????????????????????????? | | ??????????????????????#?????????? ???????????? | | ??????????????????????# ????????? ???????????? | | ????????????????????### ???????? ??????????? | | ????????????????????? #######? ??????????? | | ????????????????????? #;;;;;## ??????????? | | ?????????????????????? #; # ???????????? | | ??????????????????????? %* a ??????????????? | | ???????????????????????#= aa#????????????????? | | ???????????????????????#; ;#????????????????? | | ???????????????????????# @ a ;#????????????????? | | ???????????????????????# ##???????????????? | | ???????????????????????# ###??????????????? | | ???????????????????????#; #??????????????? | | ???????????????????????#; ! #??????????????? | | ???????????????????????#; !*! #??????????????? | | ???????????????????????## ! #??????????????? | | ???????????????????????# #??????????????? | | ???????????????????????# ##??????????????? | | ??????????????????????# ##???????????????? | | ??????????????????????# ????????????????? | | ??????????????????????# #???????????????? | | ??????????????????????## ! # #???????????????? | | ???????????????????????## #%d ???????????????? | | ????????????????????????# #u # #??????????????? | | ???????????????????????? # # # ??????????????? | | ???????????????????????? ## # ??????????????? | | ??????????????????????? ?????????????? | | ??????????????????????? ? # ?????????????? | | ????????????????????????? ???????????????? | | ?????????????????????????? ## ?????????????????? | | ?????????????????????????? #????????????????????? | | ??????????????????????????# ?????????????????????? | | ??????????????????????????# ?????????????????????? | | ??????????????????????????# ?????????????????????? | +----------------------------------------------------+ Best States ------------- Heat Dissipation 25 Energy Generation 14 Energy Capacity 250 Matter Stores 300 Matter Capacity 300 Sight Range 16 Terrain Scan Density 10 Armor Coverage 225 Evasion (%) 40 Recoil Reduction 2 Item Schematics ----------------- None Robot Schematics ------------------ None Fabricated ------------ Nothing Alien Tech Used ----------------- None Achievements -------------- None Challenges ------------ None Game ------ Seed ShockImpactRedirector Manual? 0 Play Time 00:03:42 Cumulative 400.3 hours Start 2019.12.26 @ 23:16:23 End 2019.12.26 @ 23:19:00 Sessions 1 Manual Loads 0 Difficulty Rogue Special Mode None Game No. 713 Rogue 713 Adventurer 0 Explorer 0 Win Type - Total 29 Types 22/0/3/3/1/0/0 Lore% 93 Gallery% 91 Achievement% 80 Wizard Run 0 Options --------- ASCII 1 Keyboard 0 Movement Numpad Keybinds 0 Fullscreen 0 Font 14/SmallcapsGlow Map View 76x50 Tactical HUD 1 Map Filters NONE Filters NONE Steam 1 RUN: 35417598-4583-4e7d-aa08-83f610745409